bitfinex-derivatives/quotes_SOLF0:USTF0_20240823
["timestamp","ask_amount","ask_price","bid_price","bid_amount"]
[1724423624331,0.04909978,145.12,145.11,3.445]
[1724423625736,1.405,145.2,145.11,31.71]
[1724423626138,1.405,145.2,145.15,3.4439]
[1724423626338,1.405,145.2,145.11,31.71]
[1724423626637,0.04523415,145.17,145.14,0.04818134]
[1724423626833,0.04523415,145.17,145.16,3.4439]
[1724423627338,0.04523415,145.17,145.15,3.444]
[1724423628340,0.04523415,145.17,145.14,0.04818134]
[1724423634249,0.04523415,145.17,145.14,3.49238134]
[1724423634545,0.04523415,145.17,145.14,0.04818134]
[1724423634945,0.04523415,145.17,145.14,3.49248134]
[1724423635247,0.04523415,145.17,145.14,0.04818134]
[1724423636041,0.04523415,145.17,145.14,3.47264604]
[1724423636349,0.04523415,145.17,145.16,3.4439]
[1724423636542,0.04523415,145.17,145.14,0.04818134]
[1724423637253,0.04523415,145.17,145.15,3.4441]
[1724423637639,0.04523415,145.17,145.14,0.04818134]
[1724423638249,0.04523415,145.17,145.16,3.4439]
[1724423640949,0.04523415,145.17,145.15,3.444]
[1724423641155,0.04523415,145.17,145.14,0.04818134]
[1724423642257,0.04523415,145.17,145.16,3.4439]
[1724423642656,0.04523415,145.17,145.14,0.04818134]
[1724423642850,0.04523415,145.17,145.15,3.4439]
[1724423643052,0.04523415,145.17,145.14,0.04818134]
[1724423643453,0.04523415,145.17,145.16,3.4439]
[1724423644257,0.04523415,145.17,145.14,0.04818134]
[1724423645763,31.78523415,145.17,145.14,0.04818134]
[1724423646063,4.0056,145.16,145.04,39.9461]
[1724423646356,4.0056,145.16,145.06,31.74]
[1724423646557,4.0056,145.16,145.11,3.445]
[1724423646761,1.3464,145.16,145.08,31.74]
[1724423646957,0.04606759,145.13,145.11,31.78447352]
[1724423647165,3.4429,145.21,145.13,3.4444]
[1724423647361,0.05187101,145.18,145.16,0.05244191]
[1724423648459,0.05187101,145.18,145.16,26.47244191]
[1724423648767,2.7141,145.26,145.2,3.4429]
[1724423649250,1.3677,145.26,145.19,26.42]
[1724423649452,26.42,145.29,145.19,26.42]
[1724423649662,26.4670502,145.25,145.23,0.04717016]
[1724423649854,26.47061392,145.25,145.23,0.04717016]
[1724423650053,26.47061392,145.25,145.11,1.3009]
[1724423650266,26.42,145.21,145.14,3.4441]
[1724423650466,31.73,145.23,145.11,33.0309]
[1724423650756,1.3692,145.22,145.11,33.0309]
[1724423650962,0.05031179,145.18,145.15,0.04720361]
[1724423652565,31.73,145.17,145.07,1.4034]
[1724423652758,31.73,145.14,145.03,6.858]
[1724423652955,3.4446,145.13,145.03,6.858]
[1724423653157,31.73,145.14,145.03,6.858]
[1724423653355,31.73,145.14,145.02,33.1334]
[1724423653773,31.7817494,145.09,144.98,3.43963151]
[1724423654067,31.7817494,145.09,144.97,31.73]
[1724423654068,31.73,145.09,144.97,31.73]
[1724423654269,1.3811,145.11,145.03,3.4467]
[1724423654466,1.3811,145.11,144.99,31.73]
[1724423654668,1.3811,145.11,145.05,3.4464]
[1724423654875,0.04803316,145.09,145.07,0.04845413]
[1724423655371,0.04803316,145.09,145.08,3.4458]
[1724423655768,2.6693,145.18,145.11,3.445]
[1724423655968,2.6693,145.18,145.07,4.82019283]
[1724423656169,2.6693,145.18,145.09,31.73]
[1724423656371,2.6693,145.18,145.09,35.14741565]
[1724423656572,2.6693,145.18,145.09,31.73]
[1724423656870,0.04622573,145.15,145.12,0.04580888]
[1724423657069,0.04622573,145.15,145.12,3.49050888]
[1724423657866,0.04622573,145.15,145.12,0.04580888]
[1724423659073,0.04622573,145.15,145.14,3.4444]
[1724423659375,31.77622573,145.15,145.12,0.04580888]
[1724423660561,0.04622573,145.15,145.12,0.04580888]
[1724423661073,0.04622573,145.15,145.13,3.4445]
[1724423661464,0.04622573,145.15,145.12,0.04580888]
[1724423662776,0.04622573,145.15,145.13,3.4445]
[1724423662981,0.04622573,145.15,145.12,0.04580888]
[1724423663368,0.04622573,145.15,145.14,3.4444]
[1724423663873,4.7735,145.25,145.17,3.4435]
[1724423664069,2.7306,145.25,145.14,31.73]
[1724423664265,4.053,145.25,145.14,31.73]
[1724423664573,4.053,145.25,145.18,3.4432]
[1724423664974,0.05011391,145.23,145.2,0.04606729]
[1724423666965,0.05011391,145.23,145.22,3.4425]
[1724423668778,0.05011391,145.23,145.2,0.04606729]
[1724423669574,0.05011391,145.23,145.22,3.4425]
[1724423671275,1.399,145.31,145.22,26.41]
[1724423671978,1.399,145.31,145.23,3.44470353]
[1724423672373,0.05140461,145.28,145.26,0.05269244]
[1724423672576,0.05140461,145.28,145.26,3.57273703]
[1724423672978,0.05140461,145.28,145.26,0.05269244]
[1724423674280,26.46140461,145.28,145.12,6.858]
[1724423674579,26.41,145.25,145.14,26.41]
[1724423674977,26.41,145.25,145.16,27.7231]
[1724423675173,26.41,145.27,145.16,27.7231]
[1724423675377,0.05068541,145.22,145.21,3.4427]
[1724423675575,0.04483753,145.23,145.2,0.0436471]
[1724423675780,0.04544527,145.23,145.2,0.04991535]
[1724423675981,0.04544527,145.23,145.21,3.4424]
[1724423676178,0.04544527,145.23,145.2,0.04991535]
[1724423677676,26.45544527,145.23,145.2,0.04991535]
[1724423677881,26.41,145.21,145.09,26.41]
[1724423678078,26.41,145.21,145.09,27.7028]
[1724423678284,26.41,145.21,145.09,31.18069439]
[1724423678585,1.3295,145.2,145.09,31.18069439]
[1724423678885,0.04991316,145.16,145.13,0.05044813]
[1724423679782,0.04991316,145.16,145.14,26.41]
[1724423679983,1.3396,145.22,145.14,26.41]
[1724423680887,1.3396,145.22,145.14,29.8541]
[1724423681183,0.0512266,145.19,145.17,0.04589397]
[1724423683389,0.0512266,145.19,145.17,3.43455004]
[1724423683583,0.0512266,145.19,145.17,6.87815004]
[1724423683788,0.0512266,145.19,145.17,3.43455004]
[1724423684090,0.0512266,145.19,145.18,3.4434]
[1724423684885,0.0512266,145.19,145.17,6.87815004]
[1724423685086,0.0512266,145.19,145.17,0.04589397]
[1724423685986,26.4612266,145.19,145.17,0.04589397]
[1724423686185,26.41,145.19,145.09,3.47789439]
[1724423686484,26.41,145.15,145.05,29.88365969]
[1724423686690,26.41,145.17,145.08,26.41]
[1724423687190,0.04562961,145.14,145.11,0.04600352]
[1724423689097,0.04562961,145.14,145.11,3.49080352]
[1724423689296,0.04562961,145.14,145.11,0.04600352]
[1724423690790,26.45562961,145.14,145.11,0.04600352]
[1724423690981,0.04562961,145.14,145.11,0.04600352]
[1724423691382,26.48562961,145.14,145.11,0.04600352]
[1724423691593,29.93002961,145.14,145.11,0.04600352]
[1724423692091,26.48562961,145.14,145.11,0.04600352]
[1724423692883,26.48562961,145.14,145.05,3.40464062]
[1724423693090,26.44,145.14,145.03,27.732]
[1724423693289,3.4449,145.12,145.03,27.732]
[1724423693594,26.44,145.14,145.03,31.21824457]
[1724423693891,0.04440479,145.1,145.07,0.05258173]
[1724423694086,0.04440479,145.1,145.07,26.49258173]
[1724423694388,0.04440479,145.1,145.08,3.4458]
[1724423694594,0.04440479,145.1,145.07,0.05258173]
[1724423696394,0.04440479,145.1,145.07,3.49848173]
[1724423696597,0.04440479,145.1,145.07,0.05258173]
[1724423697893,0.04440479,145.1,145.07,3.49858173]
[1724423698096,0.04440479,145.1,145.07,0.05258173]
[1724423700102,0.04440479,145.1,145.08,3.4456]
[1724423700401,0.04440479,145.1,145.07,0.05258173]
[1724423702400,33.04,145.08,144.98,33.04]
[1724423702805,1.4002,145.07,144.98,33.04]
[1724423703200,3.4463,145.06,144.99,3.4479]
[1724423703399,33.04,145.05,144.96,1.3535]
[1724423703601,1.4002,145.07,144.97,33.04]
[1724423704211,3.4462,145.06,144.97,33.04]
[1724423704412,1.4002,145.07,144.97,33.04]
[1724423704716,33.04,145.06,144.95,34.3312]
[1724423705110,33.04,145.03,144.94,3.39770941]
[1724423705312,33.04,145.03,144.93,33.04]
[1724423705509,33.04,145.03,144.95,3.4487]
[1724423705819,33.04,145.03,144.92,1.3711]
[1724423706015,33.04,145.01,144.93,3.35966448]
[1724423706214,33.04,145.01,144.87,3.13628241]
[1724423706215,33.04,144.97,144.88,1.2899]
[1724423706416,33.04,144.97,144.87,36.40999979]
[1724423706720,2.7238,145.0,144.91,33.04]
[1724423706919,0.04466279,144.99,144.91,33.04]
[1724423707618,34.36466279,144.99,144.96,0.0520683]
[1724423707817,34.36466279,144.99,144.85,2.6916]
[1724423707818,33.04,144.98,144.85,2.6916]
[1724423708118,33.04,144.96,144.88,3.4503]
[1724423708417,33.04,144.96,144.85,35.7316]
[1724423708616,1.28,144.99,144.89,33.04]
[1724423708816,1.28,144.99,144.91,33.04]
[1724423709118,1.28,144.99,144.94,33.04]
[1724423709417,0.04527536,144.95,144.94,36.4889]
[1724423709918,1.28,144.99,144.94,36.4889]
[1724423710119,33.04,144.96,144.85,2.6916]
[1724423710312,33.09146989,144.96,144.85,35.7316]
[1724423710512,33.04,144.96,144.85,35.7316]
[1724423710918,0.05133692,144.92,144.85,35.7316]
[1724423711220,0.05133692,144.92,144.81,33.04]
[1724423711421,33.04,144.91,144.83,3.4515]
[1724423711719,33.04,144.91,144.81,33.04]
[1724423711915,33.04,144.91,144.84,3.4513]
[1724423712119,0.04931848,144.87,144.81,33.04]
[1724423712516,0.04931848,144.87,144.83,33.04]
[1724423713017,0.04931848,144.87,144.86,3.451]
[1724423713422,33.04,144.97,144.86,3.37832509]
[1724423713622,33.04,144.97,144.88,33.04]
[1724423714221,2.6499,144.99,144.9,33.04]
[1724423714613,2.6499,144.99,144.91,3.4496]
[1724423714811,2.6499,144.99,144.92,33.04]
[1724423715718,0.0472711,144.96,144.93,0.04488573]
[1724423716111,0.0472711,144.96,144.93,33.08488573]
[1724423716412,0.0472711,144.96,144.95,33.04]
[1724423716716,0.0472711,144.96,144.93,0.04488573]
[1724423718418,0.0472711,144.96,144.93,3.49398573]
[1724423718620,0.0472711,144.96,144.95,33.04]
[1724423718815,0.0472711,144.96,144.93,33.08488573]
[1724423719017,0.0472711,144.96,144.94,3.4491]
[1724423719218,0.0472711,144.96,144.93,0.04488573]
[1724423721818,0.0472711,144.96,144.94,33.04]
[1724423722420,0.0472711,144.96,144.95,3.4488]
[1724423723227,28.9511,145.04,144.97,3.4482]
[1724423723424,1.3911,145.04,144.96,33.04]
[1724423723625,1.4116,145.07,144.98,33.04]
[1724423723821,33.04,145.1,145.03,3.4469]
[1724423724029,36.4853,145.1,145.0,33.04]
[1724423724218,33.04,145.1,145.0,33.04]
[1724423724522,33.04,145.1,144.98,33.04]
[1724423724723,0.05294468,145.06,145.04,0.04876959]
[1724423726127,33.09294468,145.06,145.04,0.04876959]
[1724423726329,33.09294468,145.06,144.95,2.8172]
[1724423726623,36.43862156,145.08,144.94,34.4538]
[1724423726624,33.04,145.02,144.94,3.449]
[1724423726822,1.2813,145.01,144.91,1.3643]
[1724423727017,33.04,145.04,144.94,33.04]
[1724423727224,33.04,145.06,144.98,3.4479]
[1724423727625,33.04,145.06,144.98,0.04974569]
[1724423727826,0.05015334,145.0,144.98,0.04974569]
[1724423728331,2.6796,145.07,144.98,33.08974569]
[1724423728531,2.6796,145.07,144.98,0.04974569]
[1724423728834,0.0463737,145.0,144.98,0.04974569]
[1724423729226,33.07,145.11,144.99,33.07]
[1724423729531,33.07,145.11,145.0,35.8302]
[1724423729720,33.07,145.09,145.0,4.8158]
[1724423729927,33.07,145.13,145.02,33.07]
[1724423730327,2.719,145.14,145.04,33.07]
[1724423730521,2.719,145.14,145.04,39.65]
[1724423731031,2.719,145.14,145.06,3.4462]
[1724423731428,4.0607,145.14,145.07,3.4459]
[1724423731632,4.0607,145.14,145.04,39.65]
[1724423731831,4.0607,145.14,145.04,43.15253894]
[1724423732228,0.05055782,145.09,145.01,39.65]
[1724423732427,0.05055782,145.09,145.06,3.446]
[1724423732630,0.05055782,145.09,145.05,3.49557496]
[1724423732929,0.05055782,145.09,145.08,3.4457]
[1724423733729,0.05055782,145.09,145.05,1.3834]
[1724423733931,0.05055782,145.09,145.05,4.89206184]
[1724423734131,0.05055782,145.09,145.06,0.04512566]
[1724423734741,67.21,145.18,145.06,39.69512566]
[1724423735039,43.0934,145.18,145.09,3.4453]
[1724423735333,39.65,145.14,145.06,0.04512566]
[1724423735535,39.65,145.14,145.06,3.49132566]
[1724423735736,39.65,145.14,145.04,4.89449406]
[1724423735929,39.65,145.16,145.04,4.89449406]
[1724423736133,39.65,145.16,145.05,39.65]
[1724423736327,43.094,145.16,145.07,3.4458]
[1724423736533,39.65,145.16,145.05,39.65]
[1724423736735,1.3163,145.2,145.08,39.65]
[1724423736930,1.3163,145.2,145.12,3.4447]
[1724423737129,1.3163,145.2,145.09,1.44888816]
[1724423738040,1.3163,145.2,145.1,39.65]
[1724423738241,2.5811,145.21,145.12,39.65]
[1724423738538,39.65,145.25,145.13,1.3851]
[1724423738738,0.05257601,145.15,145.14,3.51245015]
[1724423738939,0.05257601,145.15,145.14,3.4443]
[1724423739131,0.05257601,145.15,145.1,39.65]
[1724423739331,0.05257601,145.15,145.09,1.4021]
[1724423739542,39.65,145.2,145.18,0.04778027]
[1724423739934,39.65,145.22,145.18,0.04778027]
[1724423740441,39.65,145.22,145.12,3.49306455]
[1724423740642,0.04931614,145.21,145.19,0.04560276]
[1724423740936,3.49211614,145.21,145.19,0.04560276]
[1724423741137,3.49211614,145.21,145.13,6.80003745]
[1724423741138,3.4428,145.21,145.13,3.35573745]
[1724423741339,39.65,145.2,145.14,3.4443]
[1724423741536,39.65,145.2,145.19,0.04833052]
[1724423741742,39.65,145.2,145.1,1.4057]
[1724423741941,0.04692099,145.21,145.1,41.0557]
[1724423742140,39.65,145.22,145.18,0.04987347]
[1724423742341,39.65,145.25,145.18,3.49317347]
[1724423742639,39.65,145.25,145.18,3.4433]
[1724423742838,3.9765,145.26,145.15,40.9455]
[1724423743037,0.04356341,145.23,145.19,3.4429]
[1724423743338,0.04356341,145.23,145.2,0.05266727]
[1724423743537,0.04356341,145.23,145.2,3.49546727]
[1724423743743,0.04356341,145.23,145.2,0.05266727]
[1724423743942,0.04356341,145.23,145.2,39.70266727]
[1724423744142,0.04356341,145.23,145.22,3.4424]
[1724423744340,0.04356341,145.23,145.2,0.05266727]
[1724423744536,0.04356341,145.23,145.21,3.4426]
[1724423744740,0.04356341,145.23,145.2,0.05266727]
[1724423746243,0.04356341,145.23,145.21,3.4425]
[1724423746643,0.04356341,145.23,145.2,0.05266727]
[1724423747149,0.04356341,145.23,145.2,3.49536727]
[1724423747350,0.04356341,145.23,145.2,0.05266727]
[1724423747843,0.04356341,145.23,145.2,3.49546727]
[1724423748450,0.04356341,145.23,145.2,0.05266727]
[1724423755262,33.04,145.22,145.1,35.6842]
[1724423755452,3.4433,145.19,145.1,36.9944]
[1724423755755,33.04,145.22,145.1,36.9944]
[1724423756062,33.04,145.2,145.1,36.9944]
[1724423756261,0.04347183,145.16,145.14,0.05264465]
[1724423757458,0.04347183,145.16,145.14,3.49674465]
[1724423757761,0.04347183,145.16,145.14,33.09264465]
[1724423758163,0.04347183,145.16,145.15,3.4441]
[1724423758356,2.7013,145.24,145.14,33.09264465]
[1724423758558,2.7013,145.24,145.17,33.04]
[1724423758758,1.3187,145.24,145.17,33.04]
[1724423758967,1.2926,145.27,145.18,33.04]
[1724423759461,4.7339,145.27,145.2,3.4428]
[1724423759664,0.05013952,145.24,145.21,0.05078777]
[1724423760661,1.36423952,145.24,145.21,0.05078777]
[1724423761053,0.05013952,145.24,145.21,0.05078777]
[1724423763069,33.04,145.23,145.21,0.05078777]
[1724423763256,35.7468,145.23,145.21,0.05078777]
[1724423763463,3.4424,145.22,145.21,0.05078777]
[1724423763871,2.7068,145.23,145.21,0.05078777]
[1724423764163,0.05013952,145.24,145.21,0.05078777]
[1724423765070,0.05013952,145.24,145.23,3.4422]
[1724423765575,0.05013952,145.24,145.21,33.09078777]
[1724423766360,0.05013952,145.24,145.22,3.4422]
[1724423766566,0.05013952,145.24,145.23,33.04]
[1724423766962,0.05013952,145.24,145.21,2.73848777]
[1724423767268,0.05013952,145.24,145.21,0.05078777]
[1724423767971,0.05013952,145.24,145.22,3.4422]
[1724423769170,0.05013952,145.24,145.21,33.09078777]
[1724423769468,0.05013952,145.24,145.23,33.04]
[1724423769672,3.5128201,145.36,145.27,33.04]
[1724423769859,37.9099201,145.36,145.25,33.04]
[1724423770168,3.4397,145.34,145.26,3.4413]
[1724423770366,3.4397,145.34,145.25,33.04]
[1724423770367,39.13623238,145.36,145.25,33.04]
[1724423770568,33.04,145.31,145.21,33.04]
[1724423770871,33.04,145.31,145.29,0.04734155]
[1724423771066,33.0840073,145.31,145.29,0.04974759]
[1724423771760,3.4844073,145.31,145.29,0.04974759]
[1724423772071,0.0440073,145.31,145.29,0.04974759]
[1724423772267,3.4405,145.3,145.29,0.04974759]
[1724423772470,33.0840073,145.31,145.29,0.04974759]
[1724423772471,0.0440073,145.31,145.29,0.04974759]
[1724423773676,0.0440073,145.31,145.3,3.4405]
[1724423774262,34.4044,145.41,145.32,3.4399]
[1724423774567,3.4391,145.37,145.29,33.08974759]
[1724423774763,3.4391,145.37,145.29,0.04974759]
[1724423774960,33.04,145.39,145.28,3.50971684]
[1724423775161,36.40696153,145.39,145.3,3.4405]
[1724423775373,33.09153236,145.35,145.32,0.04473305]
[1724423775763,33.04,145.33,145.24,1.2747]
[1724423775976,33.04,145.31,145.2,6.62470903]
[1724423776171,33.04,145.27,145.19,1.3559]
[1724423776475,33.04,145.29,145.19,34.3959]
[1724423776871,33.04,145.27,145.17,33.04]
[1724423777069,0.04888444,145.25,145.23,0.04656568]
[1724423780773,3.442,145.24,145.23,0.04656568]
[1724423781173,4.83538444,145.25,145.19,3.443]
[1724423781372,1.39368444,145.25,145.19,3.443]
[1724423781570,1.3448,145.25,145.17,33.04]
[1724423781778,34.3848,145.25,145.15,34.399]
[1724423782077,33.04,145.24,145.13,33.04]
[1724423782482,0.04740596,145.2,145.17,0.04704553]
[1724423783278,0.04740596,145.2,145.18,3.4434]
[1724423784276,0.04740596,145.2,145.17,3.49054553]
[1724423784478,0.04740596,145.2,145.17,0.04704553]
[1724423784782,0.04740596,145.2,145.19,36.4831]
[1724423785172,0.04740596,145.2,145.17,33.08704553]
[1724423786176,0.04740596,145.2,145.17,0.04704553]
[1724423786478,3.4431,145.19,145.17,0.04704553]
[1724423786980,0.04740596,145.2,145.17,0.04704553]
[1724423787183,3.49040596,145.2,145.17,0.04704553]
[1724423787770,0.04740596,145.2,145.17,0.04704553]
[1724423788082,33.08740596,145.2,145.17,0.04704553]
[1724423788280,2.6458,145.19,145.12,3.4446]
[1724423788478,2.6458,145.19,145.1,33.04]
[1724423789587,0.05104411,145.16,145.13,0.05177401]
[1724423790385,0.05104411,145.16,145.14,33.05]
[1724423790584,0.05104411,145.16,145.13,0.05177401]
[1724423790883,0.05104411,145.16,145.02,3.13628241]
[1724423790884,33.05,145.14,145.02,3.13628241]
[1724423791075,33.05,145.14,145.04,33.05]
[1724423791277,1.3156,145.15,145.06,33.05]
[1724423791680,1.3156,145.15,145.05,3.42004444]
[1724423791887,0.04860372,145.11,145.09,33.09151032]
[1724423792085,0.04898427,145.11,145.09,33.09151032]
[1724423792380,3.51200334,145.21,145.09,33.05]
[1724423792584,33.05,145.22,145.13,33.05]
[1724423792778,3.4436,145.17,145.12,3.4448]
[1724423792979,33.05,145.22,145.11,33.05]
[1724423793180,0.05082765,145.18,145.15,0.04732277]
[1724423793382,3.49432765,145.18,145.15,0.04732277]
[1724423793579,0.05082765,145.18,145.15,0.04732277]
[1724423793982,3.4438,145.16,145.15,0.04732277]
[1724423794478,3.4448,145.12,145.05,33.05]
[1724423794793,33.05,145.16,145.05,33.05]
[1724423795085,3.4446,145.13,145.08,3.4456]
[1724423795281,0.04524884,145.12,145.09,0.04317182]
[1724423795881,33.05,145.11,145.09,0.04317182]
[1724423796279,3.4453,145.1,145.09,0.04317182]
[1724423796684,33.05,145.11,145.02,1.4128]
[1724423796886,3.4458,145.08,145.04,3.4465]
[1724423798078,0.05228874,145.07,145.04,3.4465]
[1724423798690,0.05228874,145.07,145.03,3.4469]
[1724423798889,0.05228874,145.07,145.02,1.4128]
[1724423799184,0.05228874,145.07,145.04,3.4465]
[1724423799385,0.05228874,145.07,145.02,1.4128]
[1724423799691,0.05228874,145.07,145.05,3.4464]
[1724423799881,0.05228874,145.07,145.04,33.05]
[1724423800285,0.05228874,145.07,145.06,3.4462]
[1724423800687,0.05228874,145.07,145.04,33.05]
[1724423801580,0.05228874,145.07,145.06,3.4462]
[1724423801783,60.59,145.19,145.06,33.05]
[1724423801990,64.5644,145.19,145.09,33.05]
[1724423802191,3.4438,145.17,145.09,33.05]
[1724423802693,0.04436593,145.14,145.12,3.49200568]
[1724423802882,0.04436593,145.14,145.12,0.04740568]
[1724423803086,0.04436593,145.14,145.12,33.09740568]
[1724423803488,3.4429,145.2,145.12,33.09740568]
[1724423803693,4.0636,145.23,145.14,33.05]
[1724423803883,4.0636,145.23,145.17,33.05]
[1724423803884,1.413,145.23,145.17,33.05]
[1724423804081,63.51103843,145.24,145.17,33.05]
[1724423804689,63.51103843,145.24,145.15,33.05]
[1724423804889,63.51103843,145.24,145.14,1.3756]
[1724423805092,0.04898109,145.22,145.14,1.3756]
[1724423805688,0.04898109,145.22,145.18,0.04610725]
[1724423808801,3.49158109,145.22,145.18,0.04610725]
[1724423809501,0.04898109,145.22,145.18,0.04610725]
[1724423810100,3.49158109,145.22,145.18,0.04610725]
[1724423810496,0.04898109,145.22,145.18,0.04610725]
[1724423811096,0.04898109,145.22,145.2,3.4429]
[1724423811402,0.04898109,145.22,145.18,0.04610725]
[1724423812192,0.04898109,145.22,145.2,3.4429]
[1724423812500,0.04898109,145.22,145.18,0.04610725]
[1724423813715,3.4427,145.21,145.18,0.04610725]
[1724423814309,3.49138109,145.22,145.18,0.04610725]
[1724423814605,0.04898109,145.22,145.18,0.04610725]
[1724423814807,0.04898109,145.22,145.18,3.48930725]
[1724423815204,0.04898109,145.22,145.18,0.04610725]
[1724423815403,3.49148109,145.22,145.18,0.04610725]
[1724423815600,0.04898109,145.22,145.18,0.04610725]
[1724423815906,3.4428,145.21,145.18,0.04610725]
[1724423816105,0.04898109,145.22,145.18,0.04610725]
[1724423816411,0.04898109,145.22,145.18,3.48940725]
[1724423817000,3.49148109,145.22,145.18,0.04610725]
[1724423817200,0.04898109,145.22,145.18,0.04610725]
[1724423817608,3.49158109,145.22,145.18,0.04610725]
[1724423819713,0.04898109,145.22,145.18,0.04610725]
[1724423820010,0.04898109,145.22,145.19,33.05]
[1724423820204,0.04898109,145.22,145.21,33.05]
[1724423820809,0.04898109,145.22,145.21,36.4927]
[1724423821019,0.04898109,145.22,145.21,33.05]
[1724423821411,6.2204,145.28,145.21,36.4927]
[1724423821608,27.54,145.29,145.21,33.05]
[1724423821808,33.05,145.32,145.21,33.05]
[1724423822110,3.47249321,145.31,145.21,33.05]
[1724423822316,33.05,145.32,145.22,1.336]
[1724423822615,33.05,145.3,145.26,0.04441675]
[1724423822807,0.04760769,145.29,145.27,0.04732958]
[1724423823008,36.491,145.28,145.27,0.04722511]
[1724423823216,34.3268,145.28,145.16,1.336]
[1724423823402,33.05,145.24,145.16,1.336]
[1724423824111,0.05041774,145.21,145.19,0.04343395]
[1724423825211,0.05041774,145.21,145.19,3.48643395]
[1724423825411,0.05041774,145.21,145.19,0.04343395]
[1724423830206,0.05041774,145.21,145.19,3.48643395]
[1724423830807,0.05041774,145.21,145.19,0.04343395]
[1724423832017,0.05041774,145.21,145.19,3.48643395]
[1724423832215,0.05041774,145.21,145.2,33.05]
[1724423832424,1.2768,145.28,145.2,33.05]
[1724423832922,3.4414,145.27,145.22,3.4423]
[1724423833417,0.04493417,145.26,145.23,3.49425162]
[1724423833923,0.04493417,145.26,145.23,0.05215162]
[1724423834420,3.48653417,145.26,145.23,0.05215162]
[1724423835021,0.04493417,145.26,145.23,0.05215162]
[1724423835524,3.4418,145.25,145.23,0.05215162]
[1724423835716,0.04493417,145.26,145.23,0.05215162]
[1724423837118,0.04493417,145.26,145.24,3.4419]
[1724423837322,0.04493417,145.26,145.23,0.05215162]
[1724423837822,0.04493417,145.26,145.24,3.4419]
[1724423838017,0.04493417,145.26,145.23,0.05215162]
[1724423838223,36.60262328,145.26,145.23,0.05215162]
[1724423838424,33.09493417,145.26,145.23,0.05215162]
[1724423838621,0.04493417,145.26,145.23,0.05215162]
[1724423838822,3.4419,145.25,145.23,0.05215162]
[1724423839126,0.04493417,145.26,145.23,0.05215162]
[1724423839324,3.4419,145.25,145.23,0.05215162]
[1724423839525,33.09493417,145.26,145.23,0.05215162]
[1724423839729,33.05,145.24,145.23,0.05215162]
[1724423840420,36.4919,145.24,145.23,0.05215162]
[1724423840622,33.05,145.24,145.15,1.3019]
[1724423841125,33.05,145.22,145.14,1.3756]
[1724423841522,3.4433,145.19,145.16,3.4438]
[1724423841720,33.05,145.22,145.16,3.4438]
[1724423841928,0.05238153,145.19,145.16,3.49124808]
[1724423842322,0.05238153,145.19,145.16,0.04744808]
[1724423842726,3.4433,145.18,145.16,0.04744808]
[1724423843220,0.05238153,145.19,145.16,0.04744808]
[1724423844823,0.05238153,145.19,145.16,3.49124808]
[1724423845224,0.05238153,145.19,145.16,0.04744808]
[1724423845537,0.05238153,145.19,145.17,3.4434]
[1724423845726,0.05238153,145.19,145.16,0.04744808]
[1724423846028,0.05238153,145.19,145.18,3.4433]
[1724423846231,0.05238153,145.19,145.16,0.04744808]
[1724423847035,0.05238153,145.19,145.17,3.4436]
[1724423847334,0.05238153,145.19,145.16,0.04744808]
[1724423848229,0.05238153,145.19,145.16,33.09744808]
[1724423848627,0.05238153,145.19,145.16,36.54124808]
[1724423849334,0.05238153,145.19,145.16,33.09744808]
[1724423849525,0.05238153,145.19,145.16,0.04744808]
[1724423851038,33.10238153,145.19,145.16,0.04744808]
[1724423851331,3.4436,145.17,145.16,0.04744808]
[1724423851536,0.05238153,145.19,145.16,0.04744808]
[1724423852627,0.05238153,145.19,145.18,3.4433]
[1724423852826,0.05238153,145.19,145.16,0.04744808]
[1724423854147,3.49558153,145.19,145.16,0.04744808]
[1724423854838,0.05238153,145.19,145.16,0.04744808]
[1724423855039,33.05,145.18,145.16,0.04744808]
[1724423855238,1.43988153,145.19,145.16,0.04744808]
[1724423855436,3.4436,145.17,145.16,0.04744808]